bitfinex/quotes_ETHUSD_20250813
["timestamp","ask_amount","ask_price","bid_price","bid_amount"]
[1755094529362,0.0992,4650.0,4649.9,3.845]
[1755094529559,0.2064,4650.0,4649.9,3.845]
[1755094530230,0.2064,4650.0,4649.9,6.318]
[1755094530428,0.2064,4650.0,4649.9,3.845]
[1755094531264,0.2064,4650.0,4649.9,6.7503]
[1755094531427,0.1072,4650.0,4649.9,11.9013]
[1755094531632,0.02,4651.4,4649.9,13.09143]
[1755094531962,0.02,4651.4,4650.0,2.91610348]
[1755094532161,0.1072,4650.8,4650.0,2.9053]
[1755094532335,0.0992,4651.3,4650.1,0.4323]
[1755094532536,0.1072,4650.5,4650.2,3.79394358]
[1755094532737,0.02,4651.4,4650.3,2.9053]
[1755094532928,0.1072,4650.8,4650.4,0.01080071]
[1755094533226,0.1072,4650.8,4650.5,2.9053]
[1755094533431,0.02,4651.4,4650.6,4.28810255]
[1755094533643,0.1072,4651.2,4650.6,4.57863255]
[1755094533856,0.1072,4651.2,4650.7,2.9053]
[1755094534059,0.1072,4651.2,4650.8,0.01079886]
[1755094534362,0.1072,4651.2,4650.9,2.9053]
[1755094534568,0.1072,4651.2,4650.9,2.9160977]
[1755094534727,0.1072,4651.2,4651.0,0.4323]
[1755094535128,0.1072,4651.2,4651.1,2.9053]
[1755094535866,0.1072,4651.2,4651.1,2.9061]
[1755094536186,0.1072,4651.2,4651.1,0.0008]
[1755094537028,0.0992,4650.9,4650.7,0.01079724]
[1755094537272,0.0992,4651.3,4650.8,2.473]
[1755094537567,0.02,4651.4,4648.4,0.4667]
[1755094537568,0.0992,4649.7,4649.1,2.473]
[1755094537743,0.1072,4649.7,4649.6,3.833]
[1755094538067,0.1072,4649.7,4649.6,6.74911365]
[1755094538374,0.1072,4649.7,4649.6,6.7383]
[1755094538577,0.0935574,4649.7,4649.6,7.41723]
[1755094538781,0.1072,4650.8,4649.6,7.41723]
[1755094539000,0.1072,4650.8,4650.2,0.1072]
[1755094539139,0.02,4651.4,4650.3,6.76210417]
[1755094539442,0.02,4651.4,4650.4,3.85680071]
[1755094539643,0.02,4651.4,4650.5,0.67621007]
[1755094539870,0.02,4651.4,4650.5,3.58151007]
[1755094540279,0.02,4651.4,4650.6,2.91609932]
[1755094540570,0.02,4651.4,4650.6,2.9053]
[1755094541166,0.02,4651.4,4650.6,2.9061]
[1755094541468,0.02,4651.4,4650.7,8.58262964]
[1755094541673,0.02,4651.4,4650.7,9.00413101]
[1755094541832,0.02,4651.4,4650.8,2.9053]
[1755094542033,0.02,4651.4,4650.9,0.01079724]
[1755094542229,0.02,4651.4,4651.0,6.7413]
[1755094542438,0.02,4651.4,4651.1,3.59130557]
[1755094542836,0.02,4651.4,4651.2,2.9053]
[1755094543376,0.02,4651.4,4651.0,3.836]
[1755094543534,0.19447406,4651.3,4651.0,3.836]
[1755094543856,0.19447406,4651.2,4651.0,3.836]
[1755094544066,0.19447406,4651.1,4651.0,3.836]
[1755094544234,0.29367406,4651.1,4650.7,7.829]
[1755094544570,0.0992,4651.1,4651.0,3.829]
[1755094544773,0.29373627,4651.1,4651.0,3.829]
[1755094545470,0.76045146,4651.1,4651.0,3.829]
[1755094545674,3.24605146,4651.1,4651.0,3.829]
[1755094545848,3.24525146,4651.1,4651.0,3.829]
[1755094546372,3.24525146,4651.1,4651.0,5.15]
[1755094547574,3.24525146,4651.1,4648.3,2.46101884]
[1755094547786,0.0984,4649.2,4648.4,0.29133188]
[1755094547985,0.1072,4648.5,4648.4,0.29133188]
[1755094548284,0.30162166,4648.5,4647.7,2.9053]
[1755094548573,0.2056,4648.2,4647.2,2.473]
[1755094548876,0.39998205,4648.2,4648.1,3.831]
[1755094549671,0.30158205,4648.2,4648.1,6.304]
[1755094550357,0.30158205,4648.2,4648.1,3.831]
[1755094551437,0.76828205,4648.2,4648.1,8.983]
[1755094552143,0.30158205,4648.2,4648.1,8.983]
[1755094553039,0.30158205,4648.2,4648.1,8.969]
[1755094553573,0.30158205,4648.2,4648.1,12.7712]
[1755094553772,0.0984,4649.1,4648.1,12.7712]
[1755094553989,0.1072,4648.4,4648.1,12.3389]
[1755094554156,0.1938223,4648.3,4648.2,2.473]
[1755094554486,0.19386983,4648.3,4648.1,8.969]
[1755094554668,0.19386983,4648.2,4648.1,8.969]
[1755094555075,0.19386983,4648.2,4648.1,8.968]
[1755094555076,0.75895079,4648.2,4648.1,8.968]
[1755094555448,3.24455079,4648.2,4648.1,8.968]
[1755094556253,3.35175079,4648.2,4648.1,8.968]
[1755094558875,3.35175079,4648.2,4648.1,8.956]
[1755094559385,3.35175079,4648.2,4648.1,5.173]
[1755094559545,0.0984,4647.7,4647.6,0.001]
[1755094559878,0.39945079,4647.7,4647.6,3.781]
[1755094560088,3.10815079,4647.7,4647.6,3.781]
[1755094560467,3.10815079,4647.7,4647.6,3.779]
[1755094560468,3.10756505,4647.7,4647.6,3.779]
[1755094560779,0.0984,4647.2,4647.1,0.01]
[1755094560996,0.39886505,4647.2,4647.1,5.164]
[1755094561150,3.10756505,4647.2,4647.1,5.164]
[1755094561782,3.10756505,4647.2,4647.1,8.938]
[1755094562493,0.84836505,4647.2,4647.1,8.938]
[1755094562670,0.2056,4647.2,4647.1,8.938]
[1755094562991,0.29132324,4647.2,4647.1,12.6434]
[1755094563150,0.29131232,4647.2,4647.1,12.1812]
[1755094563479,0.0984,4647.2,4647.1,7.4844]
[1755094564086,0.2913606,4647.2,4647.1,5.155]
[1755094564585,0.2913606,4647.2,4647.1,8.971]
[1755094564981,0.7408606,4647.2,4647.1,8.971]
[1755094565379,3.0000606,4647.2,4647.1,8.971]
[1755094565887,2.9992606,4647.2,4647.1,8.9718]
[1755094566217,0.7400606,4647.2,4647.1,8.9718]
[1755094566781,0.7400606,4647.2,4647.1,5.1558]
[1755094566987,0.7400606,4647.2,4647.1,8.9658]
[1755094567204,0.7400606,4647.2,4647.1,5.1558]
[1755094567426,2.8063,4647.2,4647.1,8.9648]
[1755094567605,2.9992606,4647.2,4647.1,5.1558]
[1755094567808,2.9992606,4647.2,4647.1,8.9638]
[1755094568643,0.2905606,4647.2,4647.1,8.9638]
[1755094568938,0.0976,4647.2,4647.1,8.9638]
[1755094569244,2.8063,4647.2,4647.1,8.9638]
[1755094569444,2.9992606,4647.2,4647.1,8.9638]
[1755094569787,0.7400606,4647.2,4647.1,8.9638]
[1755094570130,0.5471,4647.2,4647.1,8.9638]
[1755094570333,0.5471,4647.2,4647.1,5.1558]
[1755094570615,2.8063,4647.2,4647.1,8.9708]
[1755094570814,2.9992606,4647.2,4647.1,8.9708]
[1755094571824,2.8063,4647.2,4647.1,8.9708]
[1755094571988,2.99913117,4647.2,4647.1,8.9708]
[1755094572188,0.73993117,4647.2,4647.1,8.9708]
[1755094572423,2.2592,4647.9,4647.1,8.9708]
[1755094572424,0.64233117,4647.8,4647.1,8.9708]
[1755094572721,0.0976,4647.2,4647.1,8.9708]
[1755094572905,0.2048,4647.2,4647.1,9.86788]
[1755094573112,0.2048,4647.2,4647.1,11.3202]
[1755094573417,0.2048,4647.2,4647.1,11.7824]
[1755094574007,0.0542113,4647.2,4647.1,11.7824]
[1755094574189,0.0878021,4647.2,4647.1,11.7824]
[1755094574390,0.02,4649.4,4647.1,11.7824]
[1755094574617,0.1072,4647.6,4647.2,4.00067218]
[1755094574820,0.1072,4647.6,4647.3,6.6166]
[1755094575049,0.1072,4648.0,4647.4,0.01083957]
[1755094575202,0.1072,4648.0,4647.5,6.6156]
[1755094575407,0.1072,4648.0,4647.6,3.49579955]
[1755094575600,0.1072,4648.0,4647.7,3.803]
[1755094575823,0.1072,4648.0,4647.7,6.6146]
[1755094576018,0.1072,4648.0,4647.8,2.8116]
[1755094576221,0.1072,4648.0,4647.9,3.802]
[1755094576402,0.1072,4648.0,4647.9,5.00481314]
[1755094576713,0.1072,4648.0,4647.9,7.34337982]
[1755094577294,0.1072,4648.0,4647.9,3.798]
[1755094578722,0.002,4648.2,4647.9,3.798]
[1755094578723,0.002,4648.2,4647.9,6.1474]
[1755094578935,0.0976,4649.6,4648.0,2.82243216]
[1755094579143,0.1072,4648.8,4648.2,0.1072]
[1755094579306,0.0976,4649.6,4648.5,17.30678618]
[1755094579509,0.0976,4649.6,4648.6,5.81583862]
[1755094579851,0.002,4650.2,4648.6,5.81583862]
[1755094579852,0.1072,4650.0,4649.4,0.1072]
[1755094580078,0.1072,4650.0,4648.7,0.01082083]
[1755094580079,0.002,4650.2,4649.5,6.62841342]
[1755094580214,0.002,4650.2,4649.7,0.1072]
[1755094580408,0.002,4650.2,4649.6,6.6176]
[1755094580409,0.002,4650.2,4649.8,0.67248]
[1755094580645,0.002,4650.2,4649.9,3.805]
[1755094580913,0.0976,4650.0,4649.9,3.805]
[1755094581112,0.2048,4650.0,4649.9,3.805]
[1755094581660,0.2048,4650.0,4649.9,8.959]
[1755094581950,0.002,4650.2,4649.9,12.6665]
[1755094582122,0.02,4650.4,4650.0,2.8116]
[1755094582311,0.002,4650.7,4650.2,0.1072]
[1755094582512,0.002,4650.7,4650.3,3.81780463]
[1755094582768,0.02,4651.4,4650.3,3.81780463]
[1755094582769,0.02,4651.4,4650.6,17.30678618]
[1755094583002,0.1072,4652.0,4651.3,0.1072]
[1755094583165,0.0976,4652.3,4651.4,6.627391]
[1755094583366,0.1272,4652.4,4651.9,0.1072]
[1755094583596,0.1272,4652.4,4652.0,6.62638499]
[1755094583799,0.02,4652.4,4652.1,2.8223843]
[1755094583985,0.02,4652.4,4652.3,0.1072]
[1755094584189,0.02,4652.4,4652.3,9.07298245]
[1755094584364,0.02,4652.4,4652.3,11.8738]
[1755094585401,0.02,4652.4,4652.3,11.8746]
[1755094585900,0.0192,4652.4,4652.3,6.7216]
[1755094586075,0.0192,4652.4,4652.3,7.46002384]
[1755094588108,0.0192,4652.4,4652.3,6.99782384]
[1755094588776,0.0192,4652.4,4652.3,3.8028]
[1755094589018,0.1264,4652.4,4652.3,3.8028]
[1755094589380,0.224,4652.4,4652.3,3.8028]
[1755094589581,0.1264,4652.4,4652.3,3.8028]
[1755094589778,0.224,4652.4,4652.3,3.8028]
[1755094590016,0.6755,4652.4,4652.3,3.7778]
[1755094590216,0.1264,4652.4,4652.3,3.7778]
[1755094590389,0.0976,4653.0,4652.3,25.24890574]
[1755094590596,0.0976,4653.0,4652.3,6.45638]
[1755094590789,0.0976,4652.6,4652.3,0.0008]
[1755094591090,0.0976,4652.6,4652.4,3.802]
[1755094591400,0.0976,4652.6,4652.5,3.801]
[1755094591601,2.4799,4653.8,4652.5,3.801]
[1755094591602,2.4799,4653.8,4652.5,8.96178014]
[1755094591815,0.0976,4652.6,4652.5,8.951]
[1755094592317,0.5491,4652.6,4652.5,5.15]
[1755094592519,0.5491,4652.6,4652.4,0.0008]
[1755094592520,0.0976,4651.8,4651.7,7.828]
[1755094592813,3.029,4651.8,4651.7,11.63]
[1755094594322,3.029,4651.8,4651.7,7.828]
[1755094594526,3.029,4651.8,4651.7,11.629]
[1755094595316,0.0976,4651.8,4651.7,11.629]
[1755094595514,0.5491,4651.8,4651.7,11.629]
[1755094595935,0.0976,4651.8,4651.7,11.6298]
[1755094596228,0.5491,4651.8,4651.7,11.6298]
[1755094596522,0.0976,4651.8,4651.7,11.6298]
[1755094597182,3.029,4651.8,4651.7,5.1518]
[1755094597388,3.029,4651.8,4650.7,0.001]
[1755094597389,0.0976,4650.8,4650.7,0.001]
[1755094597582,0.0976,4650.8,4650.7,5.152]
[1755094597822,0.0976,4650.8,4650.3,0.001]
[1755094597823,0.0976,4650.4,4650.3,0.001]
[1755094597983,0.0976,4649.2,4648.8,2.678]
[1755094598183,0.0976,4649.2,4648.1,0.02]
[1755094598608,0.0976,4649.2,4649.1,3.835]
[1755094598885,0.0976,4649.2,4649.1,4.2185]
[1755094599191,0.0976,4649.2,4649.1,3.835]
[1755094599414,0.4515,4650.6,4649.1,3.835]
[1755094599589,0.4515,4650.6,4649.2,0.01081273]
[1755094599789,0.0976,4649.8,4649.2,0.01081273]
[1755094599989,0.0976,4649.3,4649.2,0.01081273]
[1755094600215,0.0976,4649.3,4649.1,0.02]
[1755094600382,0.0976,4649.3,4649.2,3.809]
[1755094600586,0.2048,4649.3,4649.2,3.811]
[1755094601037,3.1362,4649.3,4649.1,0.02]
[1755094601189,2.69923172,4649.2,4649.1,0.02]
[1755094601398,2.69923172,4649.2,4649.1,5.171]
[1755094601399,3.15073172,4649.2,4649.1,5.171]
[1755094601609,3.12382425,4649.2,4649.1,5.171]
[1755094601932,0.6563,4649.2,4649.1,5.171]
[1755094602226,0.6563,4649.2,4649.1,8.985]
[1755094602396,3.1362,4649.2,4649.1,8.985]
[1755094602592,3.32861101,4649.2,4649.1,8.985]
[1755094603040,0.84871101,4649.2,4649.1,8.985]
[1755094603238,0.6563,4649.2,4649.1,8.985]
[1755094604013,3.1362,4649.2,4649.1,8.985]
[1755094604334,3.32861101,4649.2,4649.1,8.985]
[1755094605406,3.32861101,4649.2,4649.1,5.171]
[1755094605609,3.32861101,4649.2,4649.1,8.974]
[1755094605808,3.32861101,4649.2,4648.7,5.153]
[1755094606026,0.0976,4648.8,4648.7,5.153]
[1755094606226,3.1362,4648.8,4648.7,5.153]
[1755094606432,3.32861101,4648.8,4648.7,5.153]
[1755094606843,0.0976,4648.2,4648.1,0.02]
[1755094607026,0.0976,4648.2,4648.1,5.173]
[1755094607027,0.2048,4648.2,4648.1,5.173]
[1755094607347,0.2048,4648.2,4648.1,8.971]
[1755094607348,3.1362,4648.2,4648.1,8.971]
[1755094607506,3.32861101,4648.2,4648.1,8.971]
[1755094607702,3.32861101,4648.2,4648.1,0.02]
[1755094607900,3.32861101,4648.2,4648.1,8.973]
[1755094608239,3.32819214,4648.2,4648.1,8.97]
[1755094608424,3.32819214,4648.2,4648.1,0.02]
[1755094608733,3.32819214,4648.2,4647.1,2.698]
[1755094608734,0.0976,4647.2,4647.1,2.698]
[1755094608937,3.1362,4647.2,4647.1,7.854]
[1755094609138,0.84822888,4647.2,4647.1,7.854]
[1755094609338,0.6563,4647.2,4647.1,7.854]
[1755094610008,0.6563,4647.2,4647.1,8.964]
[1755094610246,3.1362,4647.2,4647.1,8.964]
[1755094610452,0.84778543,4647.2,4647.1,8.964]
[1755094610748,0.6563,4647.2,4647.1,8.964]
[1755094611104,0.6563,4647.2,4647.1,0.02]
[1755094611306,0.2048,4647.2,4647.1,8.96]
[1755094612054,0.6563,4647.2,4647.1,8.96]
[1755094612674,3.029,4647.2,4647.1,8.96]
[1755094612816,3.21996175,4647.2,4647.1,8.96]
[1755094613145,3.21996175,4647.2,4646.1,0.02]
[1755094613146,3.21996175,4647.2,4646.7,5.156]
[1755094613446,0.0976,4646.8,4646.7,5.156]
[1755094613610,3.029,4646.8,4646.7,5.156]
[1755094613812,3.21996175,4646.8,4646.7,5.156]
[1755094614116,3.029,4646.8,4646.7,5.156]
[1755094614312,3.21961547,4646.8,4646.7,5.156]
[1755094614514,3.21961547,4646.8,4646.7,8.929]
[1755094615914,0.28821547,4646.8,4646.7,8.9298]
[1755094616119,0.0976,4646.8,4646.7,8.9298]
[1755094616762,0.5491,4646.8,4646.7,8.9238]
[1755094616955,0.0976,4646.8,4646.7,8.9238]
[1755094618412,0.0976,4646.8,4646.7,5.1568]
[1755094618611,0.5491,4646.8,4646.7,8.9188]
[1755094619013,0.0976,4646.8,4646.7,8.9188]
[1755094619937,0.5631,4646.8,4646.7,8.9188]
[1755094620427,2.906,4646.8,4646.7,5.1568]
[1755094620623,3.09716219,4646.8,4646.7,8.9158]
[1755094621018,2.99956219,4646.8,4646.7,8.9158]
[1755094621359,3.09716219,4646.8,4646.7,8.9158]
[1755094621528,0.75426219,4646.8,4646.7,8.9158]
[1755094622334,3.09716219,4646.8,4646.7,8.9158]
[1755094622653,3.20516219,4646.8,4646.7,8.9108]
[1755094623050,3.20516219,4646.8,4646.6,5.158]
[1755094623356,3.026463,4646.7,4646.6,5.158]
[1755094623560,0.0976,4645.8,4645.7,5.157]
[1755094623851,3.09716219,4645.8,4645.7,5.157]
[1755094624041,0.0976,4645.2,4644.8,5.157]
[1755094624242,0.39676219,4645.2,4645.1,3.775]
[1755094624560,0.0976,4644.9,4644.8,5.157]
[1755094624756,3.09716219,4644.9,4644.8,5.157]
[1755094624941,3.20516219,4644.9,4644.8,5.157]
[1755094625145,3.20594801,4644.9,4644.8,5.157]
[1755094625452,0.0976,4644.2,4643.6,5.157]
[1755094625952,0.28851606,4644.2,4644.1,3.775]
[1755094626137,0.75401606,4644.2,4644.1,3.7758]
[1755094626339,3.09691606,4644.2,4644.1,3.7758]
[1755094626540,0.75401606,4644.2,4644.1,3.7758]
[1755094626739,0.28851606,4644.2,4644.1,3.7758]
[1755094627243,0.28851606,4644.2,4644.1,6.6928]
[1755094627442,0.28851606,4644.2,4644.1,2.9378]
[1755094627645,0.28851606,4644.2,4644.1,6.6968]
[1755094627953,0.28851606,4644.2,4644.1,3.7798]
[1755094628154,0.0976,4644.2,4644.1,3.7798]
[1755094628519,0.0976,4644.2,4644.1,2.4891]
[1755094628750,0.0976,4644.2,4644.1,3.8078]
[1755094629828,0.0976,4644.2,4644.1,6.2761]
[1755094630241,0.0976,4644.2,4644.1,3.8078]
[1755094630449,0.0976,4644.2,4644.1,6.2761]
[1755094631761,0.0976,4644.2,4644.1,3.8238]
[1755094631938,0.5631,4644.2,4644.1,3.8238]
[1755094632138,2.906,4644.2,4644.1,3.8238]
[1755094632460,2.906,4644.2,4643.6,5.157]
[1755094632461,0.0976,4643.7,4643.6,5.157]
[1755094632682,2.906,4643.7,4643.6,5.157]
[1755094633669,0.0976,4643.2,4643.1,0.02]
[1755094633842,0.12452108,4643.2,4643.1,3.829]
[1755094634161,0.0976,4643.2,4643.1,3.829]
[1755094635190,2.906,4643.2,4643.1,3.829]
[1755094635370,0.0976,4642.4,4642.3,5.159]
[1755094635562,0.0976,4642.4,4638.1,18.38212574]
[1755094635563,0.0976,4641.8,4641.7,5.16]
[1755094635771,0.0976,4641.8,4641.7,8.967]
[1755094635955,0.2056,4641.8,4641.7,8.967]
[1755094637138,0.6711,4641.8,4641.7,5.16]
[1755094637328,0.0976,4640.2,4640.1,0.02]
[1755094637534,0.2056,4640.2,4640.1,3.829]
[1755094637751,3.014,4640.2,4640.1,3.829]
[1755094637959,3.20585697,4640.2,4640.1,3.829]
[1755094638164,3.20585697,4640.2,4638.1,2.4883]
[1755094638165,0.0976,4639.2,4638.1,0.02]
[1755094638366,0.28945697,4639.2,4639.1,3.83]
[1755094638645,0.39745697,4639.2,4639.1,3.83]
[1755094638847,0.31745697,4639.2,4639.1,3.83]
[1755094639595,0.31745697,4639.2,4639.1,6.747]
[1755094639796,0.1598423,4641.1,4639.1,7.24215092]
[1755094639957,0.4655,4642.0,4639.2,2.92792632]
[1755094640161,0.4655,4640.1,4639.3,0.4487]
[1755094640357,0.4655,4640.1,4639.4,2.4683]
[1755094640591,0.4655,4640.1,4639.5,3.851]
[1755094640803,0.4655,4640.1,4639.6,0.01092815]
[1755094641090,0.02693036,4641.6,4639.7,2.917]
[1755094641292,0.16171459,4642.0,4639.8,0.4487]
[1755094641595,0.02,4642.4,4639.9,9.0043]
[1755094641801,0.02,4642.4,4640.0,3.87430993]
[1755094642159,0.02,4642.4,4640.1,2.917]
[1755094642366,0.04692572,4642.4,4640.1,2.917]
[1755094642724,0.02,4642.4,4640.2,0.4487]
[1755094642893,0.04692572,4642.4,4640.3,11.4793]
[1755094643061,0.02,4642.4,4640.4,2.917]
[1755094643257,0.02,4642.4,4640.5,1.1928]
[1755094643581,0.4655,4642.2,4640.6,3.847]
[1755094643784,0.02692746,4642.1,4640.6,3.847]
[1755094643987,0.02,4642.4,4640.7,2.917]
[1755094644172,0.0269263,4642.3,4640.7,2.917]
[1755094644371,0.4655,4642.2,4640.8,3.852]
[1755094644572,0.02692746,4642.1,4640.8,3.852]
[1755094644773,17.38242819,4642.1,4640.3,5.163]
[1755094645004,3.80323761,4642.0,4640.4,3.857]
[1755094645210,0.55196404,4641.7,4640.4,3.857]
[1755094645495,17.35550073,4641.1,4639.1,0.02]
[1755094645699,0.46980742,4641.0,4639.1,0.02]
[1755094645905,0.55196404,4640.5,4639.1,0.02]
[1755094646101,17.90746477,4640.3,4639.1,0.0208]
[1755094646278,3.8301761,4640.2,4639.1,0.0208]
[1755094646479,0.55196404,4640.1,4639.1,0.0208]
[1755094646686,0.55196404,4639.7,4639.2,3.868]
[1755094647013,2.83534197,4639.6,4639.2,3.868]
[1755094647302,2.8084,4639.5,4639.3,3.868]
[1755094647472,2.83534313,4639.4,4639.3,3.868]
[1755094647676,2.83534313,4639.4,4639.1,0.0208]
[1755094647874,0.49244371,4639.3,4639.1,0.0208]
[1755094648075,0.0269443,4639.2,4638.5,3.879]
[1755094648305,2.3698443,4639.2,4638.5,3.879]
[1755094648510,2.3698443,4639.2,4636.1,0.02]
[1755094648511,0.49244488,4639.1,4636.1,0.02]
[1755094648828,0.55196404,4639.0,4638.7,2.49]
[1755094648976,2.8084,4638.9,4638.7,2.49]
[1755094649176,2.8084,4638.8,4637.1,5.184]
[1755094649377,2.8084,4638.8,4638.7,3.893]
[1755094650001,2.8084,4638.8,4637.1,5.184]
[1755094650233,0.4393,4638.7,4637.1,5.184]
[1755094650384,0.4393,4638.7,4638.6,3.9]
[1755094650718,0.108,4638.7,4638.6,3.9]
[1755094650894,0.108,4638.7,4638.6,6.2182]
[1755094651088,0.108,4638.7,4638.6,2.3192]
[1755094651290,0.108,4638.7,4638.6,0.001]
[1755094651508,0.108,4638.7,4638.6,3.902]
[1755094651703,0.29879303,4638.7,4638.6,3.902]
[1755094652081,0.29879303,4638.7,4637.1,5.184]
[1755094652082,2.93599303,4638.7,4637.1,5.184]
[1755094652283,0.4393,4638.7,4638.6,3.897]
[1755094652585,2.93599768,4638.7,4638.6,3.897]
[1755094652804,0.63009768,4638.7,4637.1,5.184]
[1755094653025,0.63018817,4638.6,4637.1,5.184]
[1755094653179,0.19088817,4638.5,4637.1,5.184]
[1755094653378,0.19088817,4638.4,4637.1,5.184]
[1755094653603,0.73635451,4639.4,4637.1,5.184]
[1755094653604,0.19088817,4638.3,4637.1,5.184]
[1755094653837,0.19088817,4638.2,4637.4,0.4544]
[1755094653979,0.19088817,4638.2,4637.1,5.184]
[1755094654185,0.19088817,4638.2,4638.1,3.946]
[1755094654501,0.19088817,4638.2,4638.1,6.7186]
[1755094654705,0.19088817,4638.2,4638.1,7.39046]
[1755094654886,2.7652,4641.4,4638.1,7.39046]
[1755094655084,0.645905,4640.7,4638.2,2.7726]
[1755094655417,0.02,4641.4,4638.3,0.4544]
[1755094655622,0.64578,4641.2,4638.4,2.3182]
[1755094655793,0.16848,4641.2,4639.5,5.166]
[1755094655988,0.02,4641.4,4639.6,6.2442]
[1755094656500,0.02,4641.4,4639.5,5.166]
[1755094656501,0.02,4641.4,4639.7,2.3182]
[1755094656927,0.02,4641.4,4639.5,5.166]
[1755094657211,0.02,4641.4,4639.8,3.925]
[1755094657416,0.02,4641.4,4639.8,5.06701221]
[1755094657627,0.02,4641.4,4639.9,2.3182]
[1755094657921,0.02,4641.4,4640.0,3.925]
[1755094658084,0.02,4641.4,4640.1,3.923]
[1755094658294,0.0269321,4641.3,4640.2,3.922]
[1755094658482,0.02,4641.4,4640.2,3.922]
[1755094658803,0.0269321,4641.3,4639.9,2.3182]
[1755094659116,0.02,4641.4,4640.0,6.2392]
[1755094659439,0.0269321,4641.3,4640.0,3.921]
[1755094659597,0.4393,4641.2,4640.0,3.921]
[1755094659793,0.02693327,4641.1,4640.0,3.921]
[1755094660130,0.02,4641.4,4640.1,3.916]
[1755094660328,0.04693152,4641.4,4640.0,2.3182]
[1755094660482,0.02,4641.4,4640.0,2.55002]
[1755094660688,0.02,4641.4,4640.1,9.082]
[1755094661020,0.02,4641.4,4640.2,0.01091794]
[1755094661315,0.02,4641.4,4640.3,11.3982]
[1755094661482,0.02,4641.4,4640.4,2.32911655]
[1755094661686,0.02,4641.4,4640.5,9.30999166]
[1755094661917,0.02,4641.4,4640.6,0.01091515]
[1755094662119,0.02,4641.4,4640.7,2.3182]
[1755094662120,0.108,4640.9,4640.7,2.3182]
[1755094662518,0.108,4641.1,4640.8,0.01091607]
[1755094662826,0.02,4641.4,4640.9,2.3182]
[1755094663034,0.02,4641.4,4641.0,4.15482397]
[1755094663233,0.02,4641.4,4641.1,0.01091166]
[1755094663446,0.02,4641.4,4641.2,2.3182]
[1755094663733,0.02,4642.4,4641.9,17.35550073]
[1755094663887,0.02,4642.4,4642.0,3.92090076]
[1755094664083,0.02,4642.4,4642.1,2.12764015]
[1755094664332,0.02,4642.4,4642.2,0.01089936]
[1755094664544,0.02,4642.4,4642.3,6.2272]
[1755094664685,0.02,4642.4,4642.3,2.3182]
[1755094665043,0.02,4642.4,4642.3,6.2370982]
[1755094665187,0.02,4642.4,4642.3,7.06267384]
[1755094665588,0.02,4642.4,4642.3,7.05767384]
[1755094666226,0.02,4643.4,4642.9,17.35550073]
[1755094666527,0.02,4643.4,4642.9,17.35630073]
[1755094666826,0.02,4643.4,4643.0,6.2212]
[1755094667195,0.02,4643.4,4643.0,3.903]
[1755094667707,0.4393,4643.3,4643.0,3.903]
[1755094667912,0.4393,4643.2,4642.9,0.0008]
[1755094668111,0.21880437,4643.1,4643.0,2.396]
[1755094668310,2.93708271,4643.1,4640.7,2.3182]
[1755094668625,0.65810495,4643.0,4640.7,2.55002]
[1755094668814,0.65810495,4643.0,4640.1,0.02]
[1755094668815,0.63118271,4642.9,4640.1,0.02]
[1755094668988,0.21880611,4642.8,4640.1,0.02]
[1755094669190,2.93708271,4642.7,4640.1,0.02]
[1755094669393,0.02,4643.4,4640.2,0.062]
[1755094669394,2.96400727,4642.6,4640.2,0.062]
[1755094669591,0.21880785,4642.5,4640.3,2.3182]
[1755094669910,0.19188271,4642.4,4640.4,0.24002]
[1755094670114,0.4393,4642.4,4640.4,0.24002]
[1755094670988,0.0269263,4642.3,4640.4,0.24002]
[1755094671494,2.93679826,4642.2,4640.1,0.02]
[1755094671694,2.96372572,4642.1,4640.2,3.892]
[1755094671908,2.93679826,4642.0,4640.2,3.892]
[1755094672107,2.96372688,4641.9,4640.2,3.892]
[1755094672306,1.289,4641.7,4640.2,3.892]
[1755094672507,0.65782862,4641.6,4640.2,3.892]
[1755094672708,2.93679826,4641.5,4640.2,3.892]
[1755094672928,0.108,4640.3,4640.2,3.892]
[1755094673248,0.5473,4640.3,4640.2,3.892]
[1755094673525,2.8532,4640.3,4640.1,0.0208]
[1755094673727,2.8532,4640.3,4639.6,5.163]
[1755094673728,2.49737764,4640.2,4639.6,5.163]
[1755094673908,0.108,4639.7,4639.6,5.163]
[1755094674235,2.8532,4639.7,4639.1,0.02]
[1755094674407,0.108,4639.2,4639.1,0.02]
[1755094674796,2.8532,4639.2,4639.1,3.91]
[1755094674995,0.73877764,4639.2,4639.1,3.91]
[1755094675197,2.8532,4639.2,4639.1,3.91]
[1755094675527,0.73877764,4639.2,4639.1,3.91]
[1755094675826,2.93667764,4639.2,4638.1,0.02]
[1755094676028,0.21762252,4639.1,4638.1,0.02]
[1755094676234,2.3059,4639.0,4638.1,0.02]
[1755094676433,0.65687222,4638.9,4638.1,0.02]
[1755094676733,0.19142618,4638.8,4638.1,0.02]
[1755094676934,0.21757338,4638.7,4638.1,0.02]
[1755094677122,2.3320472,4638.7,4638.1,0.02]
[1755094677320,0.63072618,4638.6,4638.1,0.02]
[1755094677518,0.02614836,4638.5,4638.2,3.88]